Workbook

Sheet Summary
A1: National Disaster Management Office Emergency Operations Centre Majuro Atoll, Marshall Islands Bill of Quantities Rev.1
A6: N.B. The PDF issue of the Bill of Quantities is the controlling document, this version in excel has been provided for convenience - therefore M5 Advisors accepts no responsibility to its accuracy or representation of the final Bill of Quantities.
A9: Code | B9: Description | C9: Total
A10: 1 | B10: PRELIMINARIES | C10: 0
A11: 2 | B11: DEMOLITION | C11: 0
A12: 3 | B12: GROUNDWORKS | C12: 0
A13: 4 | B13: IN-SITU CONCRETE | C13: 0
A14: 5 | B14: FORMWORK | C14: 0
A15: 6 | B15: REINFORCEMENT | C15: 0
A16: 7 | B16: TANKING & WATERPROOFING | C16: 0
A17: 8 | B17: MASONRY | C17: 0
A18: 9 | B18: STEEL, TRUSSES & STAIRS | C18: 0
A19: 10 | B19: ROOFING & CLADDING | C19: 0
A20: 11 | B20: METALWORK | C20: 0
A21: 12 | B21: PARTITIONS & LININGS | C21: 0
A22: 13 | B22: CEILINGS | C22: 0
A23: 14 | B23: ALUMINIUM WINDOWS & DOORS | C23: 0
A24: 15 | B24: DOORS & HARDWARE | C24: 0
A25: 16 | B25: RESILENT FINISHES | C25: 0
A26: 17 | B26: TILING | C26: 0
A27: 18 | B27: PAINTING | C27: 0
A28: 19 | B28: SUNDRY HARDWARE | C28: 0
A29: 20 | B29: JOINERY & CARPENTRY | C29: 0
A30: 21 | B30: EXTERNAL WORKS | C30: 0
A31: 22 | B31: HYDRAULIC & DRAINAGE SERVICES | C31: 0
A32: 23 | B32: FIRE SERVICES | C32: 0
A33: 24 | B33: ELECTRICAL SERVICES | C33: 0
A34: 25 | B34: MECHANICAL SERVICES | C34: 0
A35: 26 | B35: LIFT SERVICES | C35: 0
A36: 27 | B36: APPENDICES | C36: 0
A37: 28 | B37: OPTIONAL ITEMS | C37: 0
B39: TOTAL | C39: =SUM(C10:C37) -> 0

Sheet Majuro BoQ
A1: PRELIMINARIES
A2: Code | B2: Description | C2: Quantity | D2: Unit | E2: Rate | F2: Total
A3: 1.01 | B3: SPECIFICATION | F3: =C3*E3 -> 0
A4: =A3+0.01 -> 1.02 | B4: The Contractor is referred to the relevant specification sections for full particulars and will be deemed to have allowed here or in the measurement rates for all costs in connection therewith. | F4: 0
A5: =A4+0.01 -> 1.03 | B5: DRAWINGS | F5: 0
A6: 1.04 | B6: The Contractor is referred to the Drawing Schedule attached to the back of this Bill of Quantities for the drawings and their revision or issue references used in the preparation of this document. | F6: 0
A7: 1.05 | B7: GENERALLY | F7: 0
A8: 1.06 | B8: The true cost of Preliminaries is deemed to be entered in this Section and not elsewhere. | F8: 0
A9: 1.07 | B9: The total of the prices inserted against items contained in this section are deemed to represent the total cost of Preliminaries. | F9: 0
A10: 1.08 | B10: In general, items within the Preliminaries are regarded as a fixed amount not subject to adjustment other than in accordance the various contractual conditions and requirements referred to in the contract documents | F10: 0
A11: 1.09 | B11: Under the terms of the contract, no adjustment to the contract sum will be made for any errors in this Bill of Quantities. | F11: 0
A12: 1.1 | B12: The drawings and specifications constituting the tender documents define the scope of works. Tenderers must satisfy themselves of the adequacy of the descriptions and quantities contained within this Bill of Quantities. | F12: 0
A13: 1.11 | B13: M5 Advisors Pty Ltd accepts no liability for any reliance on or use of the Bill of Quantities by any party. | F13: 0
A14: 1.12 | B14: Name of Parties | F14: 0
A15: 1.13 | B15: Refer to the Specification for Names and Addresses of all parties including Principal, Superintendent and all other Consultants. | F15: 0
A16: 1.14 | B16: Location and Description of Site | F16: 0
A17: 1.15 | B17: Refer to the Specification and the Drawings for the location of the site, description of the site and overall site dimensions. | F17: 0
A18: 1.16 | B18: Scope of the Project | F18: 0
A19: 1.17 | B19: The Bills of Quantities have been prepared to assist Contractors to identify and define the scope of work to be included in the Contract. They are provided as a reference document only. | F19: 0
A20: 1.18 | B20: Description of Work | F20: 0
A21: 1.19 | B21: The Contractor is referred to the Specification and the Drawings for full description of the works to be carried out under this Contract. | F21: 0
A22: 1.2 | B22: PRICING OF PRELIMINARIES | F22: 0
A23: 1.21 | B23: Generally | F23: 0
A24: 1.22 | B24: It is the Contractor's responsibility to refer to the documents in pricing the Preliminaries Section of the Bill of Quantities and to allow for any cost implications in connection with the various contractual conditions and requirements referred to therein. | F24: 0
A25: 1.23 | B25: The prices inserted against items listed hereunder shall include all expenses involved in complying with the terms thereof. | F25: 0
A26: 1.24 | B26: If the Contractor leaves particular references to clauses unpriced it will be deemed that the clauses referred to have their costs included elsewhere or that the Contractor considers that no costs will be incurred in relation to those clauses. | F26: 0
A27: 1.25 | B27: Preliminaries | F27: 0
A28: 1.26 | B28: Allow for all preliminaries in accordance with the specification and the nominated contract. | F28: 0
A29: 1.27 | B29: Quality Assurance | F29: 0
A30: 1.28 | B30: Allow for all costs which may be incurred in complying with all quality assurance requirements including hold points, inspections and submissions of product data and records as specified. | F30: 0
A31: 1.29 | B31: BILLS OF QUANTITIES | F31: 0
A32: 1.3 | B32: Generally | F32: 0
A33: 1.31 | B33: The Bills of Quantities is provided as a reference document only. | F33: 0
A34: 1.32 | B34: Method of measurement | F34: 0
A35: 1.33 | B35: Unless otherwise stated the quantities are measured net as fixed in position. The quantities are not to be used for ordering of materials purposes. | F35: =C35*E35 -> 0
A36: 1.34 | B36: The quantities have been measured in accordance with the Specification and from the Drawings listed at the rear of the Bill of Quantities. | F36: 0
A37: 1.35 | B37: The Contractor is advised to recognise the Quantity Surveyors intent to identify all items of cost regardless of the status of the documentation. It is however the Contractors responsibility to make due allowance in their tender for all costs they consider necessary to complete the project in accordance with the Tender Documents whether or not those costs are identified in this Document. | F37: 0
A38: 1.36 | B38: Prices | F38: 0
A39: 1.37 | B39: The Contractor will price every item that has a value and use realistic rates to facilitate accurate costing of Variations and Claims. Unpriced items will be deemed to have their cost included elsewhere or to be NIL value. Unrealistic rates in the submitted priced Bills of Quantities will be subject to adjustment in accordance with General Condition of Contract | F39: 0
A40: 1.38 | B40: All items of the Bills of Quantities shall be rated and priced individually and not grouped together to equal the amount of the Tender. | F40: 0
A41: 1.39 | B41: The Contractor will be deemed to have included in his rates and prices for all work that may be necessary, but is not required to be measured under the detailed rules of measurement within the ASMM. | F41: 0
A42: 1.4 | B42: If the Contractor considers that a measured item attaches no individual monetary obligation, he should strike out the money columns to indicate a "no charge" item. If any item is not priced and not struck through but left blank it shall be deemed to have been struck through. The work or obligation so described shall then be deemed to be included in the rates generally and no financial adjustment may be made by reason of change in quantity to that item. | F42: 0
A43: 1.41 | B43: Any errors in extension or addition or both, or correction of incorrect or inconsistent rates or prices (including the inserting of rates or prices wrongly omitted and the deletion of rates or prices wrongly included) discovered by the Superintendent or the Contractor in the priced copy of the Bills of Quantities lodged by the Contractor shall be corrected in a manner agreed between the Contractor and the Superintendent, or in the event of failure to agree, as determined by the Superintendent so that the total of all items in the Priced Bills of Quantities continues to equal the lump sum accepted by the Principal for the execution of the whole of the work to which the Bills of Quantities relates. | F43: 0
A44: 1.42 | B44: Staging of the Works | F44: 0
A45: 1.43 | B45: The Contractor is referred to the contract documents for full details of the staging of the works and will be deemed to have allowed here or in the rates and prices for all additional costs associated therewith. Measurement items do not generally separate work in different stages. | F45: 0
A46: 1.44 | B46: Trade Names | F46: 0
A47: 1.45 | B47: All trade names included in this Bill of Quantities will be deemed to have the words 'or equal approved' inserted after them. | F47: 0
A48: 1.46 | B48: Dimensions | F48: 0
A49: 1.47 | B49: All dimensions given in item descriptions are in millimetres unless otherwise described. | F49: 0
A50: 1.48 | B50: Attendance upon nominated sub-contractors | F50: 0
A51: 1.49 | B51: Attendance items include for both general and specific attendance. Prices against such attendance items will therefore be deemed to include for all general and specific attendance. | F51: 0
A52: 1.5 | B52: Works by others | F52: 0
A53: 1.51 | B53: Contractor shall allow for all cooperation of the Principal's supply and installation items as noted. | F53: 0
A54: 1.52 | B54: ABBREVIATIONS | F54: 0
A55: 1.53 | B55: Where the following abbreviations have been used in the Bills of Quantities they shall have the meanings as indicated below: | F55: 0
A56: 1.54 | B56: approx - approximately | F56: 0
A57: 1.55 | B57: BMT - Base Metal Thickness | F57: 0
A58: 1.56 | B58: CHS - Circular Hollow Section | F58: 0
A59: 1.57 | B59: EA - Equal Angle | F59: 0
A60: 1.58 | B60: dia - diameter | F60: 0
A61: 1.59 | B61: dwg - drawing | F61: 0
A62: 1.6 | B62: (f) - finished sizes | F62: 0
A63: 1.61 | B63: kg - kilogram | F63: 0
A64: 1.62 | B64: kN - kilo Newton | F64: 0
A65: 1.63 | B65: mm - millimetre | F65: 0
A66: 1.64 | B66: m - metre | F66: 0
A67: 1.65 | B67: m2 - square metre | F67: =C67*E67 -> 0
A68: 1.66 | B68: m3 - cubic metre | F68: 0
A69: =A68+0.01 -> 1.67 | B69: max - maximum | F69: 0
A70: 1.68 | B70: min - minimum | F70: 0
A71: 1.69 | B71: MPa - Megapascals | F71: 0
A72: 1.7 | B72: NB - Nominal Bore | F72: 0
A73: 1.71 | B73: No. - number | F73: 0
A74: 1.72 | B74: nom - nominal | F74: 0
A75: 1.73 | B75: OD - Outside Diameter | F75: 0
A76: 1.74 | B76: PFC - Parallel Flanged Channel | F76: 0
A77: 1.75 | B77: PVC - Polyvinyl Chloride | F77: 0
A78: 1.76 | B78: uPVC - Unplasticised Polyvinyl Chloride | F78: 0
A79: 1.77 | B79: RC - Reinforced Concrete | F79: 0
A80: 1.78 | B80: RHS - Rectangular Hollow Section | F80: 0
A81: 1.79 | B81: SHS - Square Hollow Section | F81: 0
A82: 1.8 | B82: t - tonne | F82: 0
A83: 1.81 | B83: TFB - Taper Flanged Beam | F83: 0
A84: 1.82 | B84: TFC - Taper Flanged Channel | F84: 0
A85: 1.83 | B85: UA - Unequal Angle | F85: 0
A86: 1.84 | B86: UB - Universal Beam | F86: 0
A87: 1.85 | B87: UC - Universal Column | F87: 0
A88: 1.86 | B88: um - micro metre | F88: 0
B89: Total | F89: =SUM(F2:F88) -> 0
A91: DEMOLITION
A92: Code | B92: Description | C92: Quantity | D92: Unit | E92: Rate | F92: Total
A93: 2.01 | B93: GENERALLY | F93: =C93*E93 -> 0
A94: =A93+0.01 -> 2.02 | B94: Under the terms of the contract, no adjustment to the contract sum will be made for any errors in this Bill of Quantities. | F94: 0
A95: =A94+0.01 -> 2.03 | B95: The drawings and specifications constituting the tender documents define the scope of works. Tenderers must satisfy themselves of the adequacy of the descriptions and quantities contained within this Bill of Quantities. | F95: 0
A96: 2.04 | B96: M5 Advisors Pty Ltd accepts no liability for any reliance on or use of the Bill of Quantities by any party. | F96: 0
A97: 2.05 | B97: SPECIFICATION | F97: 0
A98: 2.06 | B98: The Contractor is referred to the relevant specification sections for full particulars and will be deemed to have allowed here or in the measurement rates for all costs in connection therewith. | F98: 0
A99: 2.07 | B99: DRAWINGS | F99: 0
A100: 2.08 | B100: The Contractor is referred to the Drawing Schedule attached to the back of the Bill of Quantities for the drawings and their revision or issue references used in the preparation of this document. | F100: 0
A101: 2.09 | B101: PREAMBLE | F101: 0
A102: 2.1 | B102: Allow in the following items or in the rates of measured items for all costs incurred in executing the works in accordance with the intent of the drawings and specifications | F102: 0
A103: 2.11 | B103: All materials, fittings, etc. removed from site unless otherwise described will become the property of the Contractor who is to cart the same away from site. | D103: item | F103: 0
A104: 2.12 | B104: Complying with all requirements set out in the Specification, the Drawings and to Authorities' Regulations. | D104: item | F104: 0
A105: 2.13 | B105: Protection of adjacent existing surfaces, glazing, decorative render mouldings, other finishes, structures and the like items that are likely to be marked, soiled and / or damaged during construction. | D105: item | F105: 0
A106: 2.14 | B106: Making good all damaged surfaces, glazing, decorative render mouldings, other finishes, structures and the like items to their original condition if any damage is caused by the Contractor and / or due to inadequate protection during construction. | D106: item | F106: 0
A107: 2.15 | B107: All demolition and clearance, labour and materials, scaffolding, needling, strutting, providing temporary walls and screens for protection of people and as dust barriers including altering and adapting same as required during the progress of the works and for taking down and clearing away on completion. | D107: item | F107: 0
A108: 2.16 | B108: Making good all works disturbed as required following demolition including re-use existing materials, replacing paving, reinstating finishes, filling holes and the like items as required to return disturbed works to their original state. | D108: item | F108: 0
A109: 2.17 | B109: Coordinating with other trades associated with the demolition. | D109: item | F109: 0
A110: 2.18 | B110: Bins, cartage and dumping fees. | D110: item | F110: 0
A111: 2.19 | B111: Cleaning down surfaces on completion required for new work to be carried out. | D111: item | F111: 0
A112: 2.2 | B112: Cleaning up, removal of all rubbish and debris, removal of all temporary supports and equipment upon completion of all demolition. | D112: item | F112: 0
A113: 2.21 | B113: The approximate quantities / dimensions of demolition work in this Bill are given as a guide to the Contractor for estimating purposes and are advised to visit the site and inspect the existing structures and site conditions and study the drawings to ascertain the full extent and character of the operations. No claim on the grounds of lack of knowledge or variance in the approximate quantities will be entertained. | D113: item | F113: 0
A114: 2.22 | B114: ALLOWANCES | F114: 0
A115: 2.23 | B115: Allow for testing and inspections | D115: item | F115: 0
A116: 2.24 | B116: Allow for samples and submissions | D116: item | F116: 0
A117: 2.25 | B117: Allow for records and record keeping | D117: item | F117: 0
A118: 2.26 | B118: Allow for dilapidation report | D118: item | F118: 0
A119: 2.27 | B119: Allow for inspection of the existing premise | D119: item | F119: 0
A120: 2.28 | B120: Allow for all measures to be taken to protect existing works or premises on site or adjoining properties and all occupants | D120: item | F120: 0
A121: 2.29 | B121: Allow for supporting structures as required | D121: item | F121: 0
A122: 2.3 | B122: Allow for staging of works | D122: item | F122: 0
A123: 2.31 | B123: Allow for locating, identifying and protecting existing services not earmarked for demolition | D123: item | F123: 0
A124: 2.32 | B124: Allow for complying with all requirements of the authorities, obtaining permits and paying all fees including appropriate disposal of demolished material | D124: item | F124: 0
A125: 2.33 | B125: Allow for any additional costs necessary to complete the works and for which no specific provision is included | D125: item | F125: 0
A126: 2.34 | B126: All necessary handling, shipping, logistics and freight including related fees and charges to ensure satisfactory completion of these works | D126: item | F126: 0
A127: 2.35 | B127: MEASUREMENT NOTE | F127: 0
A128: 2.36 | B128: All items demolished are the property of the SIWA and to be re-used or salvaged as directed | D128: Note | F128: 0
A129: 2.37 | B129: The following items are measured to assist the contractor and are in addition to those notes nominated on the architectural drawings in particular Dwg A020 Demolition Notes | D129: Note | F129: 0
A130: 2.38 | B130: HAZARDOUS MATERIAL REMOVAL | F130: 0
A131: 2.39 | B131: Remove any hazardous and contaminated material including asbestos, lead paint and remove in accordance with the clients requirements | C131: 1 | D131: item | F131: 0
A132: 2.4 | B132: Allow for all associated decontamination unit, negative air units, dust and air monitoring, testing and re-testing, and final report confirming removal of all asbestos | C132: 1 | D132: item | F132: 0
A133: 2.41 | B133: DEMOLITION | F133: 0
A134: 2.42 | B134: Allow for the demolition of any structure, element or vegetation to enable the construction of the project including water tank and UXO survey | C134: 1 | D134: item | F134: 0
B135: Total | F135: =SUM(F92:F134) -> 0
A137: GROUNDWORKS
A138: Code | B138: Description | C138: Quantity | D138: Unit | E138: Rate | F138: Total
A139: 3.01 | B139: GENERALLY | F139: =C139*E139 -> 0
A140: =A139+0.01 -> 3.02 | B140: Under the terms of the contract, no adjustment to the contract sum will be made for any errors in this Bill of Quantities. | F140: 0
A141: =A140+0.01 -> 3.03 | B141: The drawings and specifications constituting the tender documents define the scope of works. Tenderers must satisfy themselves of the adequacy of the descriptions and quantities contained within this Bill of Quantities. | F141: 0
A142: 3.04 | B142: M5 Advisors Pty Ltd accepts no liability for any reliance on or use of the Bill of Quantities by any party. | F142: 0
A143: 3.05 | B143: SPECIFICATION | F143: 0
A144: 3.06 | B144: The Contractor is referred to the relevant specification sections for full particulars and will be deemed to have allowed here or in the measurement rates for all costs in connection therewith. | F144: 0
A145: 3.07 | B145: DRAWINGS | F145: 0
A146: 3.08 | B146: The Contractor is referred to the Drawing Schedule attached to the back of the Bill of Quantities for the drawings and their revision or issue references used in the preparation of this document. | F146: 0
A147: 3.09 | B147: PREAMBLE | F147: 0
A148: 3.1 | B148: Allow in the following items or in the rates of measured items for all costs incurred in executing the works in accordance with the intent of the drawings and specifications | F148: 0
A149: 3.11 | B149: Excavating in material as found. The Contractor is to refer to the site soil report and is to allow for ALL types of material to be encountered including all levels of contaminated material (if any) AND rock of any form and for the subsequent correct disposal of surplus material and remediation treatment / stabilisation of material. | D149: item | F149: 0
A150: 3.12 | B150: Excavation rates will be deemed to include for all designed shoring. | D150: item | F150: 0
A151: 3.13 | B151: Excavation rates will be deemed to include for any type of backfilling required. | D151: item | F151: 0
A152: 3.14 | B152: Surface preparation to excavated areas and filling. | D152: item | F152: 0
A153: 3.15 | B153: Excavation rates shall include for any additional disposal of surplus soil due to the increase in bulk of excavated materials. | D153: item | F153: 0
A154: 3.16 | B154: Filling rates shall include for any decrease in bulk of filling after it has been compacted and shall include for any additional material required. | D154: item | F154: 0
A155: 3.17 | B155: Any method of compaction to achieve the required density. | D155: item | F155: 0
A156: 3.18 | B156: Stockpiling of excavated and imported material for reuse. | D156: item | F156: 0
A157: 3.19 | B157: ALLOWANCES | F157: 0
A158: 3.2 | B158: Allow for testing and inspections | D158: item | F158: 0
A159: 3.21 | B159: Allow for samples and submissions | D159: item | F159: 0
A160: 3.22 | B160: Allow for records and record keeping | D160: item | F160: 0
A161: 3.23 | B161: Allow for due diligence report | D161: item | F161: 0
A162: 3.24 | B162: Allow for giving all notices and complying with all regulations | D162: item | F162: 0
A163: 3.25 | B163: Allow for keeping excavations free from rain and percolating water by pumping or otherwise | D163: item | F163: 0
A164: 3.26 | B164: Allow for soft spots | D164: item | F164: 0
A165: 3.27 | B165: Allow for sediment and erosion control | D165: item | F165: 0
A166: 3.28 | B166: Allow for keeping excavation free from rain and percolating water by pumping or otherwise | D166: item | F166: 0
A167: 3.29 | B167: Allow for subgrade inspections and fill placement to be supervised by geotechnical engineer | D167: item | F167: 0
A168: 3.3 | B168: SUB-GRADE PREPARATION | F168: 0
A169: 3.31 | B169: Prepare a hazardous substances management plan as specified | C169: 1 | D169: item | F169: 0
A170: 3.32 | B170: Allow for local authority permits including but not limited to earthmoving and HPO permits | C170: 1 | D170: item | F170: 0
A171: 3.33 | B171: Civil Works refer to Earthworks Notes on Dwg C0001 | F171: 0
A172: 3.34 | B172: The Contractor is to visit the site after completion of the demolition (by others) and ascertain the extent of vegetation, soils containing organic and deleterious material, concrete slabs, concrete building footings and pavement areas remaining, which shall be stripped and removed from site | C172: 1 | D172: item | F172: 0
A173: 3.35 | B173: Depressions formed by removal of underground elements and or weakened areas should be cleaned out and filled with compacted imported fill material | C173: 1 | D173: item | F173: 0
A174: 3.36 | B174: Exposed construction areas shall be proof rolled and areas demonstrating excessive movement shall be removed to competent material and replaced with compacted imported fill material | C174: 1 | D174: item | F174: 0
A175: 3.37 | B175: All soft, wet or unsuitable material is to be removed and replaced with approved material | C175: 1 | D175: item | F175: 0
A176: 3.38 | B176: Structural Works refer to Bulk Excavation, Sub-Grade Preparation and Excavation and Site Retention Notes on Dwg S005 | F176: 0
A177: 3.39 | B177: Strip all vegetation and top soil to a minimum depth as per the geotechnical advice or to design subgrade levels, whichever is lower, to expose natural design founding material | C177: 1 | D177: item | F177: 0
A178: 3.4 | B178: Topsoil to be stockpiled for future landscaping use if directed | C178: 1 | D178: item | F178: 0
A179: 3.41 | B179: DETAILED EXCAVATION IN MATERIAL AS FOUND | F179: 0
A180: 3.42 | B180: Excavation commencing at reduced level | F180: 0
A181: 3.43 | B181: Trench excavation, for strip footings and ground tie beams including blinding layer, 0-1000 total depth | C181: 126 | D181: m3 | F181: 0
A182: 3.44 | B182: Trench excavation, for ground beams including blinding layer, 0-1000 total depth | C182: 62 | D182: m3 | F182: 0
A183: 3.45 | B183: Pit excavation, for pad footings including blinding layer, 0-1000 total depth | C183: 31 | D183: m3 | F183: 0
A184: 3.46 | B184: WORKING SPACE AND/OR MAINTAINING FACES | F184: 0
A185: 3.47 | B185: Provide for working space and/or maintaining faces to the following | F185: 0
A186: 3.48 | B186: Note: formwork has also been measured, therefore depending on the construction methodology, either select 'maintaining faces' or 'formwork' | F186: 0
A187: 3.49 | B187: Working space and/or maintaining faces, to strip footings and ground-tie beams excavation, 0-1000 total depth | C187: 277 | D187: m2 | F187: 0
A188: 3.5 | B188: Working space and/or maintaining faces, to ground beams excavation, 0-1000 total depth | C188: 156 | D188: m2 | F188: 0
A189: 3.51 | B189: Working space and/or maintaining faces, to pad footing excavation, 0-1000 total depth | C189: 35 | D189: m2 | F189: 0
A190: 3.52 | B190: FILLING AND BASECOURSES | F190: 0
A191: 3.53 | B191: Approved filling including compacting, leveling and trimming surface | F191: 0
A192: 3.54 | B192: Engineered fill comprising non-expansive approved select fill placed in uniform layers not exceeding 200mm loose thickness and compacted to achieve a minimum dry density ratio of 98% standard | C192: 614 | D192: m3 | F192: 0
A193: 3.55 | B193: Allow for field dry density tests to be carrier out for each layer of filling, to verify specified density ratios | C193: 1 | D193: item | F193: 0
A194: 3.56 | B194: Surplus to spoil to be removed from site | C194: 1 | D194: item | F194: 0
A195: 3.57 | B195: Type 2.3 (CBR 45) base-course compacted to minimum 95% M.D.D including compaction, leveling and trimming surface refer Reinforced Concrete Footpath note on Dwg C0110 | F195: 0
A196: 3.58 | B196: 100 thick base course | C196: 44 | D196: m2 | F196: 0
A197: 3.59 | B197: Proof roll and remove all wet and weak areas and replace with select fill material including compaction and excavation | C197: 1 | D197: item | F197: 0
A198: 3.6 | B198: Approved sand filling including compacting, leveling and trimming surface | F198: 0
A199: 3.61 | B199: 50 thick sand bed | C199: 1106 | D199: m2 | F199: 0
A200: 3.62 | B200: PLASTIC MEMBRANES | F200: 0
A201: 3.63 | B201: Layer of plastic film 0.2mm thick lapped and jointed in accordance with the manufacturer's recommendation | F201: 0
A202: 3.64 | B202: Horizontal membrane, laid on approved filling including turn-ups not exceeding 500 high | C202: 1106 | D202: m2 | F202: 0
... 1312 more rows
